Cogmind - Beta 10 @@@ ROGUE MODE // 2020.09.19 @ 01:21:09 Player: Alexbot Result: Establishing 0b11! Performance ------------- Evolutions (9) 4500 Regions Visited (29) 5800 Robots Destroyed (274) 1370 Value Destroyed (19355) 19355 Prototype IDs (128) 2560 Alien Tech Used (12) 2400 Bonus (15879) 15879 TOTAL SCORE: 51864 Bonus ------- High Alert Combat Kills 1143 Follower Combat Kills 2288 Network Hubs Disabled 200 Aligned with FarCom 300 Met Zhirov 300 A7 Reached Mainframe 300 Destroyed MAIN.C Guards 500 Met MAIN.C 5000 Destroyed MAIN.C Shell 5000 Win 3000 Friendly Fire -2152 Cogmind --------- Core Integrity 1261/1600 Matter 294/300 Energy 1030/1420 System Corruption 2% Temperature Cool (25) Movement Flying (21) Location 0b11 Command Parts ------- > --- POWER (2) -------- Micro Fission Core > --- PROPULSION (5) --- Q-thruster Improved Q-thruster Improved Q-thruster Improved Q-thruster Experimental Q-thruster > --- UTILITY (15) ----- Improved Fusion Compressor Large Storage Unit Experimental Energy Well Experimental Signal Interpreter Experimental Terrain Scan Processor Experimental Target Analyzer Experimental Core Analyzer Femtoactuators Advanced Force Booster Experimental Propulsion Shielding Advanced Powered Armor Beam Splitter EM Dispersion Field AEGIS Remote Shield > --- WEAPON (3) ------- Kinetic Spear > --- INVENTORY (12) --- SHELL Armor Core Cannon Kinetic Spear Peak State ------------ > --- POWER ------------ Micro Fission Core > --- PROPULSION ------- Q-thruster Improved Q-thruster Improved Q-thruster Improved Q-thruster Experimental Q-thruster > --- UTILITY ---------- Large Storage Unit Large Storage Unit Lightpack 2.0 Experimental Signal Interpreter Experimental Terrain Scan Processor Experimental Core Analyzer Femtoactuators Advanced Force Booster Advanced Phase Shifter Experimental Propulsion Shielding Experimental Utility Shielding Beam Splitter EM Dispersion Field System Mapper > --- WEAPON ----------- Sigix Broadsword Kinetic Spear > --- INVENTORY -------- Improved Fusion Compressor Experimental Energy Well Improved Matter Compressor Inertial Stasis Machine Experimental Sensor Array Experimental Terrain Scanner Precision Matter Filter Experimental Transmission Jammer Advanced Powered Armor AEGIS Remote Shield Antimissile System System Restoration Module Army-in-a-Box Transdimensional Reconstructor Transdimensional Reconstructor High-powered Transdimensional Reconstructor Enhanced Nova Cannon Core Cannon Hypervelocity Multirail Gamma Bomb Array Micro-nuke Launcher Sigix Terminator Advanced Datajack Plasma Cutter Kinetic Spear Enhanced Force Lance [Rating: 231] Favorites ----------- Power Micro Fission Core Engine Ion Engine Power Core Micro Fission Core Reactor Compact Particle Reactor Propulsion Combat Airjet Treads Light Treads Leg Aluminum Leg Wheel Wheel Hover Unit Combat Airjet Flight Unit Improved Q-thruster Utility Large Storage Unit Device Experimental Sensor Array Storage Large Storage Unit Processor Experimental Signal Interpreter Hackware Improved Hacking Suite Protection Experimental Utility Shielding Weapon Kinetic Spear Energy Gun Beam Rifle Energy Cannon Long-range Proton Cannon Ballistic Gun Improved KE Penetrator Ballistic Cannon Hypervelocity Mass Driver Launcher Grenade Launcher Special Weapon Stasis Beam Slashing Weapon Phasing Sabre Piercing Weapon Kinetic Spear Special Melee Weapon Advanced Datajack Build | -11 -10 -10 -9 -9 -9 -8 -8 -7 -7 -7 -5 -5 -5 -5 -5 -4 -4 -4 -4 -4 -4 -3 -3 -3 -2 -2 -2 -1 -1 ------- Run | Scr Mat Min Mat Min Exi Min Mat Fac Sto Rec Fac Ext Cet Arc Hub Fac Was Fac Upp Upp Zhi Pro Res Tes Res Qua Sec Acc Com Slots Evolved 18 | . . . 2 . . . 2 2 . . 4 . . . . 2 . . . . . . 2 . 2 . . 2 . Power 1 | . . . . . . . . . . . . . . . . 1 . . . . . . . . . . . . . Propulsion 3 | . . . . . . . . 2 . . . . . . . 1 . . . . . . . . . . . . . Utility 13 | . . . 2 . . . 2 . . . 4 . . . . . . . . . . . 2 . 2 . . 1 . Weapon 1 | . . . . . . . . . . . . . . . . . . . . . . . . . . . . 1 . Parts Attached 429 | . 2 3 5 4 1 . 13 39 12 1 28 25 9 2 6 12 1 24 2 9 2 6 27 58 20 26 38 13 41 Power 25 | . . . 1 1 . . . 4 1 . 3 1 1 . 1 2 . 2 . . . . 1 4 . 3 . . . Engine 7 | . . . 1 1 . . . 3 1 . 1 . . . . . . . . . . . . . . . . . . Core 10 | . . . . . . . . 1 . . 2 1 . . . 1 . 1 . . . . . 3 . 1 . . . Reactor 8 | . . . . . . . . . . . . . 1 . 1 1 . 1 . . . . 1 1 . 2 . . . Propulsion 89 | . . . 2 . . . 4 12 6 . 9 9 1 . . 4 . 10 . 1 . 1 3 12 3 6 6 . . Treads 26 | . . . 2 . . . 3 2 4 . 5 6 1 . . . . 2 . . . 1 . . . . . . . Leg 5 | . . . . . . . . 5 . . . . . . . . . . . . . . . . . . . . . Wheel 5 | . . . . . . . . 4 . . . 1 . . . . . . . . . . . . . . . . . Hover 28 | . . . . . . . . . 2 . 4 2 . . . . . 5 . 1 . . 3 11 . . . . . Flight 25 | . . . . . . . 1 1 . . . . . . . 4 . 3 . . . . . 1 3 6 6 . . Utility 201 | . 2 . . 1 1 . 4 4 3 1 5 11 4 1 4 5 . 9 2 4 2 2 18 26 16 13 23 12 28 Device 121 | . . . . . . . 1 . 2 . 3 4 . . . . . 5 1 2 1 2 10 19 13 11 17 10 20 Storage 13 | . 2 . . . 1 . 2 . . 1 1 . 1 . 1 . . . . . . . 1 1 . . . . 2 Processor 10 | . . . . 1 . . . 1 . . 1 3 . . . . . 1 . . . . . 1 1 . . . 1 Hackware 10 | . . . . . . . . 1 . . . . . . 1 5 . 1 . . . . . 1 . . . 1 . Protection 47 | . . . . . . . 1 2 1 . . 4 3 1 2 . . 2 1 2 1 . 7 4 2 2 6 1 5 Artifact . | . . . . . . . . . . . . . . . . . . . . . . . . . . . . . . Weapon 114 | . . 3 2 2 . . 5 19 2 . 11 4 3 1 1 1 1 3 . 4 . 3 5 16 1 4 9 1 13 Energy Gun 23 | . . . 2 1 . . 1 9 . . 4 . 1 . . . . 1 . . . . . 4 . . . . . Energy Cannon 9 | . . . . . . . . . . . . . . . . . . . . . . . 1 2 . . 2 . 4 Ballistic Gun 17 | . . 2 . . . . 2 1 . . 1 1 1 1 1 . . . . . . . . 4 1 . 1 . 1 Ballistic Cannon 12 | . . . . . . . . . . . 3 . 1 . . . 1 . . 2 . 2 2 1 . . . . . Launcher 13 | . . 1 . 1 . . 2 5 . . . . . . . . . 1 . 1 . . 1 . . . . . 1 Special Weapon 1 | . . . . . . . . . . . . . . . . . . . . . . . . 1 . . . . . Impact Weapon . | . . . . . . . . . . . . . . . . . . . . . . . . . . . . . . Slashing Weapon 18 | . . . . . . . . 1 1 . 1 3 . . . 1 . . . 1 . 1 1 . . 1 4 . 3 Piercing Weapon 17 | . . . . . . . . 3 1 . 2 . . . . . . . . . . . . 3 . 3 1 1 3 Special Melee Weapon 4 | . . . . . . . . . . . . . . . . . . 1 . . . . . 1 . . 1 . 1 Unidentified Prototypes 40 | . . 1 . . . . 1 3 . . 1 . 4 . 1 . . 1 . . 2 . 1 13 . 3 4 . 5 Parts Lost 85 | . . 1 3 2 . . 5 22 5 . 13 6 . . . 1 . 6 . 3 . . 3 10 . . . . 5 Power 9 | . . . 1 1 . . . 4 1 . 1 . . . . . . . . . . . . . . . . . 1 Propulsion 28 | . . . . . . . . 9 1 . 5 2 . . . . . 5 . 1 . . 1 4 . . . . . Utility 19 | . . . . . . . 2 1 1 . 3 4 . . . 1 . 1 . 1 . . 1 2 . . . . 2 Weapon 29 | . . 1 2 1 . . 3 8 2 . 4 . . . . . . . . 1 . . 1 4 . . . . 2 Highest Loss Streak 7 | . . 1 3 1 . . 5 6 2 . 7 5 . . . 1 . 5 . 3 . . 2 4 . . . . 2 Average Slot Usage (%) 84 | . 91 100 74 80 94 100 85 89 76 53 52 73 80 80 76 81 78 85 94 88 81 84 86 92 87 83 88 92 91 Engine 2 | . 14 14 10 6 11 11 9 4 2 . 1 . . . . . . . . . . . . . . . . . . Core 3 | . . . . . . . . 2 . . 2 5 1 . . 4 5 8 10 10 10 10 4 3 4 3 4 4 4 Reactor 1 | . . . . . . . . . . . . . 3 5 5 2 5 1 . . . . 3 4 3 4 4 4 1 Treads 6 | . . . 2 22 22 22 18 9 25 30 16 5 5 5 5 . . 1 . . . . . . . . . . . Leg 2 | . 28 28 19 . . . . 6 . . . . . . . . . . . . . . . . . . . . . Wheel 1 | . . . . . . . . 5 . . . . 5 5 5 . . . . . . . . . . . . . . Hover 5 | . . . . . . . . . 1 . 2 12 . . . . . 7 26 22 21 17 16 21 9 . . . . Flight 3 | . . . . . . . . . . . . . . . . 18 21 12 . . . . . . 6 12 17 20 20 Device 4 | . . . . . . . 1 . 4 . 3 9 9 5 5 5 5 9 4 3 5 7 10 3 7 7 6 8 16 Storage 18 | . 19 28 22 22 27 33 30 38 28 7 10 6 8 11 14 6 5 5 5 5 5 5 8 12 13 13 13 12 11 Processor 6 | . . . . 7 11 11 4 3 . . 3 8 11 11 11 1 . . 5 5 5 5 4 4 13 13 13 12 14 Hackware 10 | . . . . . . . . . . . . . . . 2 23 26 27 31 27 26 26 23 26 20 17 17 20 6 Protection 3 | . . . . . . . 4 3 2 . . 8 18 21 11 8 . 1 . 5 2 2 3 1 . 4 5 3 7 Energy Gun 3 | . 14 9 1 20 11 11 4 6 3 . 1 . 1 . . . . . 5 1 . . . 1 1 . . . . Ballistic Gun 2 | . 14 18 18 . . . 3 2 . . 1 2 2 11 10 8 . . . . . . . 2 . . . . . Slashing Weapon 1 | . . . . . . . . . 3 7 . 7 4 . . 1 5 5 5 2 5 3 2 . . . 1 4 1 Piercing Weapon 2 | . . . . . . . . 4 3 7 2 . . . . . . . . . . . . 3 4 6 4 4 6 Naked Turns . | . . . . . . . . . . . . . . . . . . . . . . . . . . . . . . Heaviest Build 126 | 11 39 39 41 43 75 75 112 123 115 20 126 60 83 83 83 70 46 47 39 67 47 50 85 75 72 62 67 70 74 Greatest Support 116 | 20 20 20 40 40 40 40 40 40 80 80 87 116 80 80 80 47 47 88 88 88 66 66 102 103 85 65 77 77 77 Greatest Overweight (x) 6 | . 1 1 3 1 1 1 2 6 5 . 3 1 2 2 2 2 . . . . . . 1 3 1 1 1 . . Average Overweight (x) . | . . 1 1 . 1 1 1 3 1 . . . 1 1 1 . . . . . . . . . . . . . . Largest Inventory Capacity 38 | . 16 16 16 16 24 24 36 36 36 10 16 16 30 30 30 30 24 24 24 24 24 24 30 36 36 36 38 38 38 Average Capacity 28 | . 10 16 16 16 20 24 26 36 27 9 15 11 22 30 30 25 24 24 24 24 24 24 29 34 36 36 36 38 35 Most Carried 38 | . 7 9 14 14 24 24 24 35 31 9 16 16 13 28 30 30 24 24 24 24 24 24 30 36 35 36 38 37 38 Average Carried 25 | . 6 8 9 11 18 24 23 32 22 8 12 11 11 17 29 24 23 23 24 23 23 23 28 32 31 35 35 33 34 Final Capacity 38 | 6 16 16 16 16 24 24 36 36 4 10 16 10 30 30 30 24 24 24 24 24 24 24 30 36 36 36 38 38 12 Final Carried 37 | 6 7 8 8 14 24 24 23 30 4 9 13 10 13 28 30 24 24 24 24 22 24 24 30 32 33 36 35 37 6 Class Distribution -------------------- 25% | Hauler-Mutant 24% | Wizard-Mutant 14% | Mutant 12% | Scavenger-Mutant 4% | Wizard-Sprinter 3% | Hacker-Scout 3% | Hauler-Sprinter 3% | Wizard-Scout Dominant Class ---------------- Mutant | -10/Materials Mutant | -10/Mines Mutant | -9/Materials Mutant | -9/Mines Mutant | -9/Exiles Hauler-Mutant | -8/Mines Hauler-Mutant | -8/Materials Hauler-Mutant | -7/Factory Hauler-Mutant | -7/Storage Mutant | -7/Recycling Mutant | -5/Factory Scavenger-Mutant | -5/Extension Scavenger-Mutant | -5/Cetus Scavenger-Mutant | -5/Archives Scavenger-Mutant | -5/Hub_04(d) Wizard-Sprinter | -4/Factory Wizard-Sprinter | -4/Waste Wizard-Mutant | -4/Factory Wizard-Mutant | -4/Upper Caves Wizard-Mutant | -4/Upper Caves Wizard-Mutant | -4/Zhirov Wizard-Mutant | -3/Proximity Caves Wizard-Mutant | -3/Research Wizard-Mutant | -3/Testing Wizard-Scout | -2/Research Hacker-Scout | -2/Quarantine Hacker-Sprinter | -2/Section 7 Wizard-Scout | -1/Access Hauler-Sprinter | -1/Command Resources | -11 -10 -10 -9 -9 -9 -8 -8 -7 -7 -7 -5 -5 -5 -5 -5 -4 -4 -4 -4 -4 -4 -3 -3 -3 -2 -2 -2 -1 -1 ----------- Run | Scr Mat Min Mat Min Exi Min Mat Fac Sto Rec Fac Ext Cet Arc Hub Fac Was Fac Upp Upp Zhi Pro Res Tes Res Qua Sec Acc Com Matter Collected 9464 | 180 65 68 137 30 . 39 205 960 353 . 457 618 186 350 800 . 130 406 5 514 91 116 649 1306 178 220 545 183 673 Remotely . | . . . . . . . . . . . . . . . . . . . . . . . . . . . . . . Salvage Created 13842 | . 110 175 263 191 . 65 287 1511 1122 . 936 153 166 601 1244 . . 406 . 260 110 142 834 722 366 80 678 244 3176 Parts 669 | . 13 8 12 17 . 7 7 76 56 . 51 4 10 34 52 . . 21 . 15 1 8 59 41 28 6 27 5 111 Haulers Intercepted 9 | . 1 . . . . . . 3 . . . . . . 2 . . . . . . . 1 1 . . 1 . . Recyclers Shooed 9 | . . . . . . . 1 . 1 . 4 . . . 2 . . . . . . . 1 . . . . . . Parts Field Recycled . | . . . . . . . . . . . . . . . . . . . . . . . . . . . . . . Retrieved Matter . | . . . . . . . . . . . . . . . . . . . . . . . . . . . . . . Parts Self-Destructed 24 | . . . . . . . . . . . . . . . . . . . . 15 1 8 . . . . . . . Prevented . | . . . . . . . . . . . . . . . . . . . . . . . . . . . . . . Kills | -11 -10 -10 -9 -9 -9 -8 -8 -7 -7 -7 -5 -5 -5 -5 -5 -4 -4 -4 -4 -4 -4 -3 -3 -3 -2 -2 -2 -1 -1 ------- Run | Scr Mat Min Mat Min Exi Min Mat Fac Sto Rec Fac Ext Cet Arc Hub Fac Was Fac Upp Upp Zhi Pro Res Tes Res Qua Sec Acc Com Combat Hostiles Destroyed 197 | . 3 3 3 10 . 4 7 31 17 . 15 3 4 4 13 . . 7 . 5 . 5 12 8 4 . 5 3 31 Melee 68 | . . . 1 . . . . 7 5 . 3 2 . . . . . 7 . . . . 4 1 3 . 4 3 28 Guns 75 | . 3 3 2 6 . . 1 13 12 . 7 . 3 4 13 . . . . . . . . 6 1 . 1 . . Cannons 19 | . . . . . . . . . . . 4 1 1 . . . . . . 5 . 5 3 . . . . . . AOE 32 | . . . . 4 . 4 6 11 . . . . . . . . . . . . . . 4 . . . . . 3 Classes Destroyed 16 | . 3 1 3 1 . . 2 3 1 . . . . . . . . . . . . . . 1 . . . . 1 Worker 21 | . . . . . . . 1 11 1 . 2 . . . 2 . . 1 . . . . 1 1 . . 1 . . Builder 10 | . . . . . . . . 4 1 . . . . . 2 . . . . . . . 2 1 . . . . . Tunneler 4 | . . 1 1 . . 1 . 1 . . . . . . . . . . . . . . . . . . . . . Hauler 9 | . 1 . . . . . . 3 . . . . . . 2 . . . . . . . 1 1 . . 1 . . Recycler 6 | . . . 1 . . . 1 2 . . . . . . 1 . . 1 . . . . . . . . . . . Operator 7 | . . . . . . . . . 1 . . . . 6 . . . . . . . . . . . . . . . Watcher 18 | . 1 . . . . . 1 . 2 . 1 . 1 . 1 . . . . . . . 3 . 2 2 2 1 1 Swarmer 30 | . 3 3 . 7 . 4 . . . . . 1 2 . . . . 5 . . . 5 . . . . . . . Grunt 65 | . . . 2 2 . . 5 21 11 . 5 1 2 . 6 . . . . . . . 5 2 . . . 3 . Brawler 5 | . . . . . . . 1 1 1 . 1 . . . 1 . . . . . . . . . . . . . . Duelist 4 | . . . . 1 . . . . . . 1 1 . . . . . . . . . . 1 . . . . . . Sentry 24 | . . . 1 . . . 1 2 5 . 1 . . 4 1 . . 1 . . . . 2 . 1 . 3 . 2 Hunter 11 | . . . . . . . . 4 . . . . . . 3 . . . . 2 . . . . . . 2 . . Programmer 27 | . . . . . . . . 3 . . 7 . . . 2 . . 1 . 3 . . 4 4 3 . . . . Enhanced Q-Series 28 | . . . . . . . . . . . . . . . . . . . . . . . . . . . . . 28 Alpha 7 1 | . . . . . . . . . . . . . . . . . . . . . . . . 1 . . . . . Protovariant L 1 | . . . . . . . . . . . . . . . . . . . . . . . . 1 . . . . . Best Kill Streak 10 | . 2 2 3 4 . 5 5 10 7 . 4 1 5 3 9 . . 5 . 5 . 5 7 5 3 1 2 3 7 Combat Bots Only 7 | . 1 2 2 4 . 4 5 5 7 . 4 1 4 2 6 . . 5 . 5 . 5 4 5 3 . 2 3 7 Max Kills in Single Turn 4 | . 1 1 1 2 . 3 2 4 1 . 1 1 1 2 2 . . 1 . 1 . 1 2 1 1 1 2 1 4 Gunslinging 1 | . . . . 1 . . . . . . . . . . 1 . . . . . . . . . . . . . . Exploded 3 | . . . . 2 . 2 2 2 . . . . . . . . . . . . . . 1 . . . . . 3 Melee 1 | . . . 1 . . . . 1 1 . 1 1 . . . . . 1 . . . . 1 1 1 . 1 1 1 Uniques/NPCs Destroyed 2 | . . 1 . . . . . . . . . . . . . . . . . . . . . . . . . . 1 YI-UF0 (-10/Mines) MAIN.C Shell (-1/Command) MAIN.C (-1/Command) Combat | -11 -10 -10 -9 -9 -9 -8 -8 -7 -7 -7 -5 -5 -5 -5 -5 -4 -4 -4 -4 -4 -4 -3 -3 -3 -2 -2 -2 -1 -1 -------- Run | Scr Mat Min Mat Min Exi Min Mat Fac Sto Rec Fac Ext Cet Arc Hub Fac Was Fac Upp Upp Zhi Pro Res Tes Res Qua Sec Acc Com Damage Taken 23088 | . 128 201 187 487 . 51 664 2974 1316 . 3045 980 427 363 1398 96 . 983 56 1684 . 564 1571 2645 453 46 695 230 1844 Core 3539 | . 21 22 41 121 . . 68 512 173 . 577 147 21 29 14 . . 256 17 138 . 146 88 589 128 46 104 6 275 Absorbed by Shields 1279 | . . . . . . . 24 21 . . . 279 133 . . . . . . . . 151 11 . . . . . 660 Reduced by Siege Mode 120 | . . . . . . . . . . . . . 14 15 76 . . . . . . 15 . . . . . . . Core Remaining (%) 59 | 100 . 82 . . . 59 87 . . 2 . . . . 21 . . . . . . 51 . 44 . . 72 . 78 Volleys Fired 612 | . 17 20 14 19 . 3 21 88 . . 75 22 13 40 66 . 48 1 1 23 . 8 60 56 8 . 4 . 5 Largest 2 | . 2 2 2 2 . 1 2 2 . . 2 2 1 2 2 . 1 1 1 2 . 2 2 2 1 . 1 . 1 Hottest 300 | . 70 70 40 112 . 30 63 155 . . 114 90 240 70 70 . 57 80 80 127 . 127 147 150 75 . 300 . 300 Shots Fired 969 | . 34 40 26 35 . 3 29 131 69 . 108 32 12 76 128 . 48 1 2 39 . 15 66 58 8 . 4 . 5 Gun 699 | . 34 40 26 32 . . 18 106 69 . 83 20 7 76 128 . . 1 2 . . . . 47 8 . 2 . . Cannon 217 | . . . . . . . . . . . 25 12 5 . . . 48 . . 38 . 15 57 11 . . 2 . 4 Launcher 53 | . . . . 3 . 3 11 25 . . . . . . . . . . . 1 . . 9 . . . . . 1 Special . | . . . . . . . . . . . . . . . . . . . . . . . . . . . . . . Kinetic 611 | . 17 29 26 . . . 15 31 . . 61 32 11 76 128 . 48 . . 38 . 15 42 36 4 . 2 . . Thermal 255 | . 17 11 . 32 . . 3 75 69 . 36 . 1 . . . . 1 2 . . . . 1 . . 2 . 5 Explosive 52 | . . . . 3 . 3 11 25 . . . . . . . . . . . 1 . . 9 . . . . . . Electromagnetic 51 | . . . . . . . . . . . 11 . . . . . . . . . . . 15 21 4 . . . . Robot Hit Streak 47 | . 3 3 21 10 . 8 23 16 47 . 26 6 5 16 18 . 4 . . 7 . 8 5 7 10 . 11 . . Robot Miss Streak 5 | . 3 3 1 3 . . 1 5 1 . 3 2 1 2 2 . 4 . . 4 . 2 4 5 . . 2 . . Penetration Max 1 | . . . . . . . . . . . 1 1 1 1 1 . 1 . . . . . . 1 . . 1 . . Secondary Targets 6 | . . . . 1 . . . 1 . . 2 . . . 2 . . . . . . . . . . . . . . Max Gunslinging Chain 1 | . . . . 1 . . . 1 . . 1 . . . 1 . . . . . . . . . . . . . . Autonomous 91 | . . . . . . . . 22 69 . . . . . . . . . . . . . . . . . . . . Shots Hit Robots 1032 | . 16 10 23 24 . 2 25 136 90 . 106 25 8 49 78 . 23 27 . 22 6 10 49 58 16 4 22 11 192 Core Hits 596 | . 5 10 10 12 . 8 24 122 36 . 41 7 6 22 45 . 3 11 . 7 1 7 42 42 13 2 15 7 98 Critical Hits 152 | . . . . . . . . 1 3 . 9 . 3 11 17 . 22 . . 15 . 5 17 20 4 . 5 . 20 Critical Kills 40 | . . . . . . . . 1 1 . 3 . 1 6 6 . . . . 4 . 3 5 6 1 . 2 . 1 Critical Parts Destroyed 79 | . . . . . . . . . 2 . 6 . 1 3 11 . 4 . . 11 . 2 12 14 1 . 2 . 10 Melee Attacks 659 | . . . . . . . . 46 23 1 29 20 . . . . . 54 2 5 6 3 44 46 39 29 50 30 232 Impact . | . . . . . . . . . . . . . . . . . . . . . . . . . . . . . . Slashing 211 | . . . . . . . . 5 4 . 18 20 . . . . . 54 2 5 6 3 44 . . 2 31 8 9 Piercing 435 | . . . . . . . . 41 19 1 11 . . . . . . . . . . . . 46 39 27 18 22 211 Sneak Attacks 27 | . . . . . . . . 4 2 . 2 4 . . . . . 4 . . . . . 3 . . 2 . 6 Combat Hostiles 8 | . . . . . . . . . . . . 1 . . . . . 1 . . . . . . . . . . 6 Follow-up Attacks 42 | . . . . . . . . 1 4 . . 3 . . . . . . . . . . . . . 1 1 3 29 Damage Inflicted 51338 | . 178 282 219 494 . 476 1062 5651 2707 . 3257 1216 241 1434 2930 . 893 1530 . 384 755 223 3311 1993 581 210 1713 592 19006 Guns 11607 | . 178 282 215 248 . . 238 1921 1934 . 1879 189 145 1434 2399 . . . . . . . . 305 207 . 33 . . Cannons 3585 | . . . . . . . . . . . 531 234 96 . . . 893 . . 384 . 223 759 465 . . . . . Explosions 12498 | . . . . 246 . 476 824 2670 . . . . . . 531 . . . . . . . 1602 . . . . . 6149 Melee 23603 | . . . . . . . . 1060 767 . 838 793 . . . . . 1530 . . 755 . 924 1223 374 210 1680 592 12857 Ramming 45 | . . . 4 . . . . . 6 . 9 . . . . . . . . . . . 26 . . . . . . Kinetic 9661 | . 77 171 215 . . . 187 469 . . 1351 423 241 1434 2399 . 893 . . 384 . 223 468 670 23 . 33 . . Thermal 11530 | . 101 111 . 248 . . 51 2091 1934 . 845 . . . . . . . . . . . . . . . . . 6149 Explosive 5179 | . . . . 246 . 476 824 2031 . . . . . . . . . . . . . . 1602 . . . . . . Electromagnetic 1320 | . . . . . . . . . . . 214 . . . 531 . . . . . . . 291 100 184 . . . . Impact . | . . . . . . . . . . . . . . . . . . . . . . . . . . . . . . Slashing 6728 | . . . . . . . . 149 121 . 442 793 . . . . . 1530 . . 755 . 924 . . . 1495 250 269 Piercing 16875 | . . . . . . . . 911 646 . 396 . . . . . . . . . . . . 1223 374 210 185 342 12588 Highest Corruption 22 | . . . . . . . 5 5 5 5 14 18 18 18 22 . 12 14 14 19 19 19 3 11 1 1 . . 4 Average Corruption 9 | . . . . . . . 5 4 5 5 11 16 18 18 19 . 6 12 14 16 19 19 2 4 1 1 . . 2 Corruption Purged 16 | . . . . . . . . . . . . . . . . . . . . . . . 6 4 . 1 . . 5 Effects 467 | . . . . . . . 6 54 18 3 23 61 20 41 63 . 7 64 6 33 10 24 5 17 . 2 . . 10 Message Errors 88 | . . . . . . . 3 16 6 1 3 14 2 3 7 . 1 16 1 4 1 2 4 2 . 1 . . 1 Matter Fused 71 | . . . . . . . 1 15 3 1 6 11 5 3 4 . 2 7 1 1 3 3 . 3 . . . . 2 Heat Flow Errors 41 | . . . . . . . . 8 2 . . 4 2 2 3 . . 8 . 6 . 2 . 4 . . . . . Energy Discharges 26 | . . . . . . . 1 3 2 . 1 1 2 1 2 . . 3 . 3 1 . . 4 . 1 . . 1 Parts Rejected 6 | . . . . . . . . 1 . . . . . . 4 . . . . 1 . . . . . . . . . Data Loss (minor) 34 | . . . . . . . . 7 4 1 3 7 . 3 2 . . 3 . 1 1 1 . . . . . . 1 Data Loss (major) 12 | . . . . . . . . 3 . . . 1 . 3 . . . 2 1 1 . 1 . . . . . . . Misfires 8 | . . . . . . . 1 1 . . . 1 . 1 2 . . . 1 . . . . 1 . . . . . Alerts 6 | . . . . . . . . . . . . 1 . . 3 . . 1 . . 1 . . . . . . . . Misdirections 67 | . . . . . . . . . . . 2 12 3 5 7 . 1 17 2 6 3 8 . 1 . . . . . Targeting Errors 92 | . . . . . . . . . 1 . 5 9 5 15 24 . 3 7 . 9 . 6 1 2 . . . . 5 Weapon Failures 16 | . . . . . . . . . . . 3 . 1 5 5 . . . . 1 . 1 . . . . . . . Overload Shots 1 | . . . . . . . . . . . . . 1 . . . . . . . . . . . . . . . . Overflow Damage 2723 | . . . . . . 44 8 349 9 . 70 189 . . 51 . . 317 . . 159 . 175 . . . . 94 1258 Projectiles 22 | . . . . . . . . . . . 16 . . . . . . . . . . . 6 . . . . . . Explosions 1550 | . . . . . . 44 8 289 . . . . . . 51 . . . . . . . 148 . . . . . 1010 Melee 1151 | . . . . . . . . 60 9 . 54 189 . . . . . 317 . . 159 . 21 . . . . 94 248 Knockbacks 26 | . . . . . . . . . . . 10 . 1 . . . . . . 3 . 1 5 6 . . . . . Impact . | . . . . . . . . . . . . . . . . . . . . . . . . . . . . . . Kinetic 24 | . . . . . . . . . . . 8 . 1 . . . . . . 3 . 1 5 6 . . . . . Secondary 2 | . . . . . . . . . . . 2 . . . . . . . . . . . . . . . . . . Self-Inflicted Damage 764 | . . . 2 44 . . 190 152 2 . . . . . 96 . . . . 20 . . 13 . . . . . 245 Shots 15 | . . . . 1 . . 6 5 . . . . . . 1 . . . . 1 . . . . . . . . 1 Rammed 7 | . . . 1 . . . . . 2 . 3 . . . . . . . . . . . 1 . . . . . . Targets Rammed 7 | . . . 1 . . . . . 2 . 3 . . . . . . . . . . . 1 . . . . . . Kicked . | . . . . . . . . . . . . . . . . . . . . . . . . . . . . . . Crushed . | . . . . . . . . . . . . . . . . . . . . . . . . . . . . . . Highest Temperature 381 | . 90 27 6 167 . . 32 314 231 . 327 238 158 146 253 . 3 322 50 381 . 199 5 262 5 . 224 . 98 Average Temperature 94 | . 31 9 2 72 . . 10 83 101 . 78 122 80 57 127 . 3 144 21 157 . 98 3 84 4 . 102 . 69 Received Heat Transfer 3524 | . . . 78 96 . . 215 838 537 . 579 65 97 63 207 9 . 114 9 21 . 4 177 21 99 . 27 63 205 Effects 5 | . . . . . . . . . . . 2 . . . . . . 1 . 2 . . . . . . . . . Energy Bleed 1 | . . . . . . . . . . . . . . . . . . 1 . . . . . . . . . . . Interference 3 | . . . . . . . . . . . 2 . . . . . . . . 1 . . . . . . . . . Short Circuit 1 | . . . . . . . . . . . . . . . . . . . . 1 . . . . . . . . . Siege Activations 10 | . . . . . . . . . . . . . 2 2 5 . . . . . . 1 . . . . . . . Total Turns 214 | . . . . . . . . . . . . . 33 38 120 . . . . . . 23 . . . . . . . Longest Duration 50 | . . . . . . . . . . . . . 22 31 50 . . . . . . 23 . . . . . . . Robots Corrupted 6 | . . . . . . . . . . . 1 . . . 2 . . . . . . . 2 1 . . . . . Combat Hostiles 3 | . . . . . . . . . . . 1 . . . . . . . . . . . 1 1 . . . . . Parts Fried 21 | . . . . . . . . . . . . 1 . . 3 . . . . . . . 3 2 5 . . . 7 Impact Corruptions . | . . . . . . . . . . . . . . . . . . . . . . . . . . . . . . Robots Melted . | . . . . . . . . . . . . . . . . . . . . . . . . . . . . . . Combat Hostiles . | . . . . . . . . . . . . . . . . . . . . . . . . . . . . . . Parts Melted 14 | . . . . 3 . . . 3 7 . 1 . . . . . . . . . . . . . . . . . . Heat Transferred 7838 | . 296 333 . 629 . . 111 2559 2479 . 1091 . . . . . . . . . . . . . . . . . 340 Parts Sabotaged 3 | . . . . . . . . . . . 3 . . . . . . . . . . . . . . . . . . Parts Stolen . | . . . . . . . . . . . . . . . . . . . . . . . . . . . . . . Parts Stripped . | . . . . . . . . . . . . . . . . . . . . . . . . . . . . . . Power Chain Reactions . | . . . . . . . . . . . . . . . . . . . . . . . . . . . . . . Missiles Intercepted . | . . . . . . . . . . . . . . . . . . . . . . . . . . . . . . Alert | -11 -10 -10 -9 -9 -9 -8 -8 -7 -7 -7 -5 -5 -5 -5 -5 -4 -4 -4 -4 -4 -4 -3 -3 -3 -2 -2 -2 -1 -1 ------- Run | Scr Mat Min Mat Min Exi Min Mat Fac Sto Rec Fac Ext Cet Arc Hub Fac Was Fac Upp Upp Zhi Pro Res Tes Res Qua Sec Acc Com Peak Influence 1257 | . 137 118 103 174 . 119 206 499 784 297 1249 1257 941 503 800 443 171 585 . . . . 338 517 341 172 380 186 505 Initial 976 | . . 53 45 39 . . 46 40 226 297 976 413 619 322 175 392 114 119 . . . . 74 155 257 74 63 165 2 Average 263 | . 57 71 71 53 . 77 65 166 518 184 1059 819 791 459 331 374 130 164 . . . . 147 172 173 83 172 128 158 Maximum Alert Level 4 | . . . . . . . 1 2 3 1 4 4 3 2 3 2 . 2 . . . . 1 2 1 . 1 . 2 Low Security (%) 61 | . 100 100 100 100 . 100 91 63 . 94 . . . . 11 . 100 85 . . . . 69 67 60 100 62 100 91 Level 1 17 | . . . . . . . 8 31 30 5 . . . 16 58 41 . 2 . . . . 30 10 39 . 37 . 2 Level 2 11 | . . . . . . . . 5 53 . . 43 14 83 28 58 . 12 . . . . . 21 . . . . 6 Level 3 6 | . . . . . . . . . 15 . 66 21 85 . 1 . . . . . . . . . . . . . . Level 4 3 | . . . . . . . . . . . 33 35 . . . . . . . . . . . . . . . . . Level 5 . | . . . . . . . . . . . . . . . . . . . . . . . . . . . . . . High Security . | . . . . . . . . . . . . . . . . . . . . . . . . . . . . . . Max Security . | . . . . . . . . . . . . . . . . . . . . . . . . . . . . . . Squads Dispatched 60 | . . . . . . . 1 14 5 . 7 . . . 6 1 . 2 . . . . 6 8 2 1 3 1 3 Investigation 8 | . . . . . . . 1 5 1 . . . . . . . . . . . . . 1 . . . . . . Extermination 20 | . . . . . . . . 3 . . 3 . . . 1 . . 2 . . . . 3 4 . 1 1 1 1 Reinforcement 28 | . . . . . . . . 5 4 . 2 . . . 4 1 . . . . . . 2 4 2 . 2 . 2 Assault 2 | . . . . . . . . . . . 2 . . . . . . . . . . . . . . . . . . Garrison 2 | . . . . . . . . 1 . . . . . . 1 . . . . . . . . . . . . . . Intercept . | . . . . . . . . . . . . . . . . . . . . . . . . . . . . . . Construction Impeded 5 | . . . . . . . . 2 . . 1 . . . 1 . . . . . . . 1 . . . . . . Haulers Reinforced 4 | . . . . . . . . 2 . . . . . . 1 . . . . . . . 1 . . . . . . Stealth | -11 -10 -10 -9 -9 -9 -8 -8 -7 -7 -7 -5 -5 -5 -5 -5 -4 -4 -4 -4 -4 -4 -3 -3 -3 -2 -2 -2 -1 -1 --------- Run | Scr Mat Min Mat Min Exi Min Mat Fac Sto Rec Fac Ext Cet Arc Hub Fac Was Fac Upp Upp Zhi Pro Res Tes Res Qua Sec Acc Com Distress Signals 22 | . . . 1 . . . 2 1 3 . . 3 1 . 1 . . . . . . . . 2 2 . 1 2 3 Communications Jammed 22 | . . . . . . . . . . . . . . . . . . . . . . . 15 . . . 7 . . Distress Signals 22 | . . . . . . . . . . . . . . . . . . . . . . . 15 . . . 7 . . Times Spotted 495 | . 7 3 6 13 . 4 10 39 29 9 34 29 11 25 22 11 6 27 4 8 . 6 29 28 34 7 23 11 60 Peak Tracking Total 17 | . 3 3 3 4 . 4 6 4 5 5 5 5 5 2 17 6 6 11 4 9 . 5 7 5 12 2 7 4 9 Tactical Retreats 41 | . . . 1 1 . . . 4 2 . 3 . . . . 2 . 6 1 3 . . 5 3 5 1 2 2 . Traps | -11 -10 -10 -9 -9 -9 -8 -8 -7 -7 -7 -5 -5 -5 -5 -5 -4 -4 -4 -4 -4 -4 -3 -3 -3 -2 -2 -2 -1 -1 ------- Run | Scr Mat Min Mat Min Exi Min Mat Fac Sto Rec Fac Ext Cet Arc Hub Fac Was Fac Upp Upp Zhi Pro Res Tes Res Qua Sec Acc Com Traps Triggered 10 | . . . . . . . . 3 . . . . . . . 1 . . . . . . 2 2 . 1 . 1 . Indirectly . | . . . . . . . . . . . . . . . . . . . . . . . . . . . . . . Trap Hack Attempts . | . . . . . . . . . . . . . . . . . . . . . . . . . . . . . . Triggered . | . . . . . . . . . . . . . . . . . . . . . . . . . . . . . . Disarmed 14 | . . . . . . . . . . . . . . . . . . . . . . . . 12 . 2 . . . Reprogrammed . | . . . . . . . . . . . . . . . . . . . . . . . . . . . . . . Reused . | . . . . . . . . . . . . . . . . . . . . . . . . . . . . . . Traps Extracted . | . . . . . . . . . . . . . . . . . . . . . . . . . . . . . . Installed . | . . . . . . . . . . . . . . . . . . . . . . . . . . . . . . Triggered 5 | . . . . . . . . . . . . . . . . . . . . . . 1 3 1 . . . . . Machines | -11 -10 -10 -9 -9 -9 -8 -8 -7 -7 -7 -5 -5 -5 -5 -5 -4 -4 -4 -4 -4 -4 -3 -3 -3 -2 -2 -2 -1 -1 ---------- Run | Scr Mat Min Mat Min Exi Min Mat Fac Sto Rec Fac Ext Cet Arc Hub Fac Was Fac Upp Upp Zhi Pro Res Tes Res Qua Sec Acc Com Machines Disabled 69 | . . . . . . . 1 9 . . 4 6 4 3 11 . . . 1 . . . 1 8 . 8 10 . 3 Max in Single Turn 7 | . . . . . . . 1 4 . . 1 1 1 2 7 . . . 1 . . . 1 1 . 1 2 . 2 Garrison Access 5 | . . . . . . . . 1 . . . . . . . . . 1 . . . . . . 2 . 1 . . Phase Generator 1 | . . . . . . . . . . . . . . . . . . . . . . . . . . . . . 1 Network Hub 1 | . . . . . . . . . . . . . . . 1 . . . . . . . . . . . . . . Energy Cycler 5 | . . . . . . . . . . . . 5 . . . . . . . . . . . . . . . . . Machines Sabotaged . | . . . . . . . . . . . . . . . . . . . . . . . . . . . . . . Garrisons Compromised . | . . . . . . . . . . . . . . . . . . . . . . . . . . . . . . Overloaded Fab Kills . | . . . . . . . . . . . . . . . . . . . . . . . . . . . . . . Fab Network Shutdowns 2 | . . . . . . . . . . . . . . . . . . 1 . . . . . 1 . . . . . Hacking | -11 -10 -10 -9 -9 -9 -8 -8 -7 -7 -7 -5 -5 -5 -5 -5 -4 -4 -4 -4 -4 -4 -3 -3 -3 -2 -2 -2 -1 -1 --------- Run | Scr Mat Min Mat Min Exi Min Mat Fac Sto Rec Fac Ext Cet Arc Hub Fac Was Fac Upp Upp Zhi Pro Res Tes Res Qua Sec Acc Com Machines Accessed 121 | . 1 . 1 . 1 . 2 10 3 2 4 7 2 . 2 1 . 13 . . 4 . 7 14 10 10 13 6 8 Terminals 87 | . 1 . 1 . . . 2 6 3 2 3 7 2 . 2 1 . 8 . . . . 4 9 7 7 10 4 8 Fabricators 7 | . . . . . . . . 1 . . . . . . . . . 2 . . . . 1 1 1 . . 1 . Repair Stations 8 | . . . . . . . . . . . 1 . . . . . . 1 . . . . 2 1 . 2 . 1 . Recycling Units 1 | . . . . . . . . 1 . . . . . . . . . . . . . . . . . . . . . Scanalyzers 8 | . . . . . . . . 1 . . . . . . . . . 1 . . . . . 3 . 1 2 . . Garrison Access 5 | . . . . . . . . 1 . . . . . . . . . 1 . . . . . . 2 . 1 . . Total Hacks 548 | . 1 . 2 . 1 . 6 24 5 4 17 20 6 . 4 13 . 73 . . 17 . 57 102 49 51 52 22 22 Successful 372 | . 1 . 1 . 1 . 1 5 1 2 10 8 2 . 1 8 . 48 . . 17 . 40 86 35 33 35 19 18 Failed 170 | . . . 1 . . . 5 19 4 2 7 12 4 . 3 5 . 24 . . . . 16 15 13 17 16 3 4 Catastrophic 29 | . . . 1 . . . . 5 . 1 4 4 1 . . 1 . 4 . . . . 1 2 1 1 2 1 . Database Lockouts 6 | . . . . . . . . . . . . . . . . . . 1 . . . . 1 1 1 1 1 . . Manual 281 | . 1 . 2 . 1 . 5 4 5 2 15 11 6 . 4 9 . 39 . . . . 28 39 25 29 33 11 12 Terminals 407 | . 1 . 2 . . . 6 14 5 4 15 20 6 . 4 13 . 56 . . . . 38 61 43 38 44 15 22 Fabricators 44 | . . . . . . . . 2 . . . . . . . . . 12 . . . . 5 16 4 . . 5 . Repair Stations 38 | . . . . . . . . . . . 2 . . . . . . 2 . . . . 14 10 . 8 . 2 . Recycling Units 2 | . . . . . . . . 2 . . . . . . . . . . . . . . . . . . . . . Scanalyzers 32 | . . . . . . . . 4 . . . . . . . . . 2 . . . . . 15 . 5 6 . . Garrison Access 7 | . . . . . . . . 2 . . . . . . . . . 1 . . . . . . 2 . 2 . . Terminal Hacks 203 | . 1 . 1 . 1 . 1 . 1 1 6 6 1 . . 5 . 21 . . 17 . 21 36 25 18 20 11 10 Record 6 | . . . . . . . . . . . . . . . . . . 1 . . 5 . . . . . . . . Part Schematic 21 | . . . . . . . . . . . . 1 . . . . . 2 . . 4 . 2 7 2 . . 3 . Robot Analysis 13 | . . . . . . . . . . . . . . . . . . . . . 4 . . . . 4 4 . 1 Prototype ID Bank 12 | . . . . . . . . . . . . . . . . . . 2 . . 4 . . 2 . 2 1 . 1 Open Door 11 | . . . . . . . . . 1 . 1 2 . . . . . . . . . . . . 1 . 3 3 . Level Access Points 2 | . . . . . . . . . . . . . . . . . . . . . . . . 1 1 . . . . Branch Access Points 8 | . 1 . 1 . . . 1 . . . 1 . . . . . . 2 . . . . 1 . 1 . . . . Emergency Access Points 5 | . . . . . . . . . . . . . . . . . . 2 . . . . 1 . . 1 . . 1 Machine Index 5 | . . . . . . . . . . . . . . . . . . . . . . . . 1 1 1 1 . 1 Terminal Index 5 | . . . . . . . . . . . 1 . . . . . . 1 . . . . 1 . 1 1 . . . Fabricator Index 5 | . . . . . . . . . . . 1 . . . . . . 1 . . . . 1 1 1 . . . . Repair Station Index 1 | . . . . . . . . . . . . . . . . . . . . . . . 1 . . . . . . Garrison Index 1 | . . . . . . . . . . . . . . . . . . . . . . . . 1 . . . . . Alert Level 19 | . . . . . . . . . . . . 1 . . . 1 . 2 . . . . 1 5 3 2 2 . 2 Unreport Threat 25 | . . . . . . . . . . 1 2 2 1 . . 1 . 1 . . . . 1 5 3 1 1 3 3 Locate Traps 10 | . . . . . . . . . . . . . . . . 1 . 1 . . . . 2 1 3 1 1 . . Disarm Traps 3 | . . . . . . . . . . . . . . . . . . . . . . . . 2 . 1 . . . Dispatch Records 3 | . . . . . . . . . . . . . . . . . . . . . . . 1 1 1 . . . . Maintenance Status 1 | . . . . . . . . . . . . . . . . . . . . . . . . . 1 . . . . Investigation Status 1 | . . . . . . . . . . . . . . . . . . . . . . . . . 1 . . . . Recall Extermination 9 | . . . . . . . . . . . . . . . . . . 2 . . . . 2 2 . 1 1 1 . Recall Reinforcements 9 | . . . . . . . . . . . . . . . . . . . . . . . 2 3 2 . 2 . . Hauler Manifests 8 | . . . . . . . . . . . . . . . . 1 . 1 . . . . 1 1 . 2 1 1 . Registered Components 1 | . . . . . . . . . . . . . . . . . . . . . . . 1 . . . . . . Registered Prototypes 2 | . . . . . . . . . . . . . . . . . . . . . . . 1 . 1 . . . . Zone Layout 15 | . . . . . . . . . . . . . . . . 1 . 3 . . . . 2 3 2 1 3 . . EX-Prototype ID Bank 1 | . . . . . 1 . . . . . . . . . . . . . . . . . . . . . . . . Disengage Seal 1 | . . . . . . . . . . . . . . . . . . . . . . . . . . . . . 1 Fabricator Hacks 31 | . . . . . . . . 1 . . . . . . . . . 10 . . . . 2 12 2 . . 4 . Network Status 3 | . . . . . . . . . . . . . . . . . . 2 . . . . . 1 . . . . . Load Schematic 13 | . . . . . . . . 1 . . . . . . . . . 3 . . . . 1 5 1 . . 2 . Build 15 | . . . . . . . . . . . . . . . . . . 5 . . . . 1 6 1 . . 2 . Repair Station Hacks 32 | . . . . . . . . . . . 2 . . . . . . 2 . . . . 10 10 . 6 . 2 . Scan Component 16 | . . . . . . . . . . . 1 . . . . . . 1 . . . . 5 5 . 3 . 1 . Repair 16 | . . . . . . . . . . . 1 . . . . . . 1 . . . . 5 5 . 3 . 1 . Recycling Unit Hacks 1 | . . . . . . . . 1 . . . . . . . . . . . . . . . . . . . . . Process 1 | . . . . . . . . 1 . . . . . . . . . . . . . . . . . . . . . Scanalyzer 27 | . . . . . . . . 2 . . . . . . . . . 2 . . . . . 15 . 3 5 . . Insert Component 21 | . . . . . . . . 1 . . . . . . . . . 1 . . . . . 11 . 3 5 . . Analyze 6 | . . . . . . . . 1 . . . . . . . . . 1 . . . . . 4 . . . . . Garrison Access Hacks 5 | . . . . . . . . 1 . . . . . . . . . 1 . . . . . . 2 . 1 . . Seal Access 5 | . . . . . . . . 1 . . . . . . . . . 1 . . . . . . 2 . 1 . . Unauthorized Hacks 73 | . . . . . . . . . . 1 2 2 1 . 1 3 . 12 . . . . 7 13 6 6 9 2 8 Terminals 65 | . . . . . . . . . . 1 2 2 1 . 1 3 . 10 . . . . 5 10 5 6 9 2 8 Track 25 | . . . . . . . . . . . . . . . . 1 . 5 . . . . 1 5 1 3 5 . 4 Assimilate 8 | . . . . . . . . . . . . . . . . 1 . . . . . . . . 2 1 3 . 1 Botnet 24 | . . . . . . . . . . 1 2 2 1 . 1 1 . 4 . . . . 3 3 1 1 . 2 2 Disrupt 2 | . . . . . . . . . . . . . . . . . . . . . . . . 1 1 . . . . Operators 6 | . . . . . . . . . . . . . . . . . . 1 . . . . 1 1 . 1 1 . 1 Fabricators 8 | . . . . . . . . . . . . . . . . . . 2 . . . . 2 3 1 . . . . Report 1 | . . . . . . . . . . . . . . . . . . . . . . . . 1 . . . . . Prioritize 3 | . . . . . . . . . . . . . . . . . . 1 . . . . 1 1 . . . . . Siphon 4 | . . . . . . . . . . . . . . . . . . 1 . . . . 1 1 1 . . . . Repair Stations . | . . . . . . . . . . . . . . . . . . . . . . . . . . . . . . Recycling Units . | . . . . . . . . . . . . . . . . . . . . . . . . . . . . . . Scanalyzers . | . . . . . . . . . . . . . . . . . . . . . . . . . . . . . . Garrison Access . | . . . . . . . . . . . . . . . . . . . . . . . . . . . . . . Data Cores Recovered . | . . . . . . . . . . . . . . . . . . . . . . . . . . . . . . Used . | . . . . . . . . . . . . . . . . . . . . . . . . . . . . . . Hacking Detections 89 | . . . 1 . . . 2 9 4 2 3 7 2 . 2 1 . 8 . . . . 5 13 6 6 9 4 5 Full Trace Events 6 | . . . . . . . 1 4 1 . . . . . . . . . . . . . . . . . . . . Feedback Events 1 | . . . . . . . . 1 . . . . . . . . . . . . . . . . . . . . . Corruption 1 | . . . . . . . . 1 . . . . . . . . . . . . . . . . . . . . . Feedback Blocked . | . . . . . . . . . . . . . . . . . . . . . . . . . . . . . . Robot Schematics Acquired . | . . . . . . . . . . . . . . . . . . . . . . . . . . . . . . Robots Built . | . . . . . . . . . . . . . . . . . . . . . . . . . . . . . . Matter . | . . . . . . . . . . . . . . . . . . . . . . . . . . . . . . Time . | . . . . . . . . . . . . . . . . . . . . . . . . . . . . . . Total Robot Build Rating . | . . . . . . . . . . . . . . . . . . . . . . . . . . . . . . Part Schematics Acquired 26 | . . . . . . . . 1 . . . 1 . . . . . 3 . . 4 . 2 10 2 . . 3 . Parts Built 17 | . . . . . . . . . . . . . . . . . . 7 . . . . 1 5 1 . . 3 . Matter 3313 | . . . . . . . . . . . . . . . . . . 953 . . . . 213 1239 213 . . 695 . Time 614 | . . . . . . . . . . . . . . . . . . 186 . . . . 38 220 50 . . 120 . Total Part Build Rating 110 | . . . . . . . . . . . . . . . . . . 41 . . . . 5 32 5 . . 27 . Parts Repaired 16 | . . . . . . . . . . . 1 . . . . . . 1 . . . . 5 5 . 3 . 1 . Time 577 | . . . . . . . . . . . 38 . . . . . . 108 . . . . 183 92 . 130 . 26 . Parts Recycled . | . . . . . . . . . . . . . . . . . . . . . . . . . . . . . . Recycled Matter 16 | . . . . . . . . 16 . . . . . . . . . . . . . . . . . . . . . Retrieved Matter . | . . . . . . . . . . . . . . . . . . . . . . . . . . . . . . Retrieved Components . | . . . . . . . . . . . . . . . . . . . . . . . . . . . . . . Parts Scanalyzed 5 | . . . . . . . . 1 . . . . . . . . . 1 . . . . . 3 . . . . . Part Schematics Acquired 5 | . . . . . . . . 1 . . . . . . . . . 1 . . . . . 3 . . . . . Parts Damaged . | . . . . . . . . . . . . . . . . . . . . . . . . . . . . . . Bothacking | -11 -10 -10 -9 -9 -9 -8 -8 -7 -7 -7 -5 -5 -5 -5 -5 -4 -4 -4 -4 -4 -4 -3 -3 -3 -2 -2 -2 -1 -1 ------------ Run | Scr Mat Min Mat Min Exi Min Mat Fac Sto Rec Fac Ext Cet Arc Hub Fac Was Fac Upp Upp Zhi Pro Res Tes Res Qua Sec Acc Com Used RIF Installer . | . . . . . . . . . . . . . . . . . . . . . . . . . . . . . . Robots Hacked 10 | . . . . . . . . . . . . . . . . . . . . . . . . . . . 1 . 9 Non-combat 1 | . . . . . . . . . . . . . . . . . . . . . . . . . . . 1 . . Combat 9 | . . . . . . . . . . . . . . . . . . . . . . . . . . . . . 9 Robot Hacks Applied 10 | . . . . . . . . . . . . . . . . . . . . . . . . . . . 1 . 9 parse_system 10 | . . . . . . . . . . . . . . . . . . . . . . . . . . . 1 . 9 Relay Couplers Released . | . . . . . . . . . . . . . . . . . . . . . . . . . . . . . . Robots Rewired 14 | . . . . . . . . . . . . 11 . . . . . . . . . . . 3 . . . . . Allies Hacked 2 | . . . . . . . . . . . . . . . . . . 1 . . . . . . . . . . 1 Hacks Repelled . | . . . . . . . . . . . . . . . . . . . . . . . . . . . . . . Allies | -11 -10 -10 -9 -9 -9 -8 -8 -7 -7 -7 -5 -5 -5 -5 -5 -4 -4 -4 -4 -4 -4 -3 -3 -3 -2 -2 -2 -1 -1 -------- Run | Scr Mat Min Mat Min Exi Min Mat Fac Sto Rec Fac Ext Cet Arc Hub Fac Was Fac Upp Upp Zhi Pro Res Tes Res Qua Sec Acc Com Total Allies 27 | . . . . 2 . . . . . . . 14 . . . 1 . . . . . . . 3 2 1 3 . 1 Largest Group 10 | . . . . 2 2 . . . . . . 10 10 2 . 1 1 1 . . . . . 3 2 1 2 1 1 Highest-Rated Group 428 | . . . . 51 51 . . . . . . 428 428 161 . 26 26 23 . . . . . 270 70 26 70 44 44 Highest-Rated Ally 156 | . . . . 31 31 . . . . . . 156 135 129 . 26 26 23 . . . . . 90 44 26 44 44 44 Total Orders 16 | . . . . . . . . . 7 . 1 . 1 . . . . . . . . . . . 1 . 5 . 1 STAY 6 | . . . . . . . . . . . . . 1 . . . . . . . . . . . . . 4 . 1 FOLLOW 1 | . . . . . . . . . . . . . . . . . . . . . . . . . . . 1 . . RETURN 9 | . . . . . . . . . 7 . 1 . . . . . . . . . . . . . 1 . . . . Ally Attacks 388 | . . . . . . . . . 59 . 8 158 71 1 . . . . . . . . . 91 . . . . . Total Damage 10317 | . . . . . . . . . 977 . 422 4167 1235 22 . . . . . . . . . 3494 . . . . . Kills 66 | . . . . . . . . . 6 . 4 34 9 . . . . . . . . . . 13 . . . . . Allies Corrupted 1 | . . . . . . . . . . . . . . . . . . . . . . . . . . . . . 1 Allies Melted . | . . . . . . . . . . . . . . . . . . . . . . . . . . . . . . Intel | -11 -10 -10 -9 -9 -9 -8 -8 -7 -7 -7 -5 -5 -5 -5 -5 -4 -4 -4 -4 -4 -4 -3 -3 -3 -2 -2 -2 -1 -1 ------- Run | Scr Mat Min Mat Min Exi Min Mat Fac Sto Rec Fac Ext Cet Arc Hub Fac Was Fac Upp Upp Zhi Pro Res Tes Res Qua Sec Acc Com Robot Analysis Total 13 | . . . . . . . . . . . . . . . . . . . . . 4 . . . . 4 4 . 1 Derelict Logs Recovered 1 | . . . . 1 . . . . . . . . . . . . . . . . . . . . . . . . . Drone Launches 43 | . . . . . . . . . 31 . 8 . . . . . . . . . . . . . 2 . 2 . . Drone Recoveries 36 | . . . . . . . . . 28 . 6 . . . . . . . . . . . . . 2 . . . . Exploration | -11 -10 -10 -9 -9 -9 -8 -8 -7 -7 -7 -5 -5 -5 -5 -5 -4 -4 -4 -4 -4 -4 -3 -3 -3 -2 -2 -2 -1 -1 ------------- Run | Scr Mat Min Mat Min Exi Min Mat Fac Sto Rec Fac Ext Cet Arc Hub Fac Was Fac Upp Upp Zhi Pro Res Tes Res Qua Sec Acc Com Turns Passed 18530 | . 226 224 247 943 423 338 605 3186 613 141 871 887 233 358 684 90 140 897 141 387 146 208 1396 1725 513 667 902 332 1007 Spaces Moved 15675 | 1 132 107 119 480 232 184 274 1399 212 81 334 519 113 111 273 179 126 1351 144 347 171 225 1347 1498 779 950 1616 713 1658 Core . | . . . . . . . . . . . . . . . . . . . . . . . . . . . . . . Treads 3090 | . . . 15 480 232 184 274 897 190 81 255 98 51 106 164 . . 63 . . . . . . . . . . . Legs 494 | 1 132 107 104 . . . . 150 . . . . . . . . . . . . . . . . . . . . . Wheels 535 | . . . . . . . . 352 . . . . 62 5 109 7 . . . . . . . . . . . . . Hover 4781 | . . . . . . . . . 22 . 79 421 . . . . . 192 144 347 171 225 1347 1498 335 . . . . Flight 6775 | . . . . . . . . . . . . . . . . 172 126 1096 . . . . . . 444 950 1616 713 1658 Fastest Speed 21 | 120 120 150 150 160 180 180 180 160 190 170 53 53 120 120 120 31 31 31 68 68 72 72 63 42 34 34 21 21 21 Average Speed 77 | 120 127 150 154 172 180 180 183 192 196 170 150 95 139 176 152 34 31 42 68 70 72 72 67 53 38 36 27 21 21 Slowest Speed 260 | 120 150 150 210 180 180 180 200 260 260 170 236 180 180 180 180 120 31 160 68 72 72 72 128 200 114 117 117 21 21 Overloaded Moves . | . . . . . . . . . . . . . . . . . . . . . . . . . . . . . . Propulsion Burnouts . | . . . . . . . . . . . . . . . . . . . . . . . . . . . . . . Robots Hopped 19 | . . . . . . . . . . . . . . . . . . 1 . . . . . . 8 . 6 3 1 Cave-ins Triggered 3 | . . . . . . . . . . . . 2 . . . . . . . . . . . . . . . . 1 Teleports 2 | . . . . . . . . . . . . . . . . . . . . . . . . 1 . . 1 . . Exploration Rate (%) 43 | 1 37 28 13 89 64 43 25 38 42 21 8 63 57 68 28 9 71 29 27 59 60 48 21 95 38 81 67 19 44 Regions Visited 29 Branch Regions 18 Pre-discovered Areas 3 | . . . . . . . . . . . . . . . . . . . . . 3 . . . . . . . . Known Exits Taken 14 | . 1 . 1 . . . . . . . 1 . . . . . . 1 1 1 1 1 1 1 1 1 1 1 . Unknown Exits Taken 13 | 1 . 1 . 1 1 1 1 1 1 1 . 1 1 1 1 . . . . . . . . . . . . . . Scrap Searched 2 | . . . . 1 . . . . . . . . . . . . . . . . . 1 . . . . . . . Spaces Dug 176 | . . . . . . . 9 5 . . 4 12 . 2 9 . . 20 2 5 . 3 17 16 18 10 15 12 17 Terrain Destroyed 1568 | . . . . 12 . 20 58 148 1 . 16 20 1 19 228 . 8 20 2 33 . 3 80 17 18 10 33 12 809 Melee 133 | . . . . . . . . 5 . . . 5 . . . . . 19 1 5 . 3 17 16 18 10 15 12 7 Projectile 168 | . . . . . . . . 1 1 . 16 15 1 19 66 . 8 1 1 . . . . 1 . . 18 . 20 AOE 1267 | . . . . 12 . 20 58 142 . . . . . . 162 . . . . 28 . . 63 . . . . . 782 Terrain Rammed . | . . . . . . . . . . . . . . . . . . . . . . . . . . . . . . Walls Destroyed . | . . . . . . . . . . . . . . . . . . . . . . . . . . . . . . Machines Disabled . | . . . . . . . . . . . . . . . . . . . . . . . . . . . . . . Actions | -11 -10 -10 -9 -9 -9 -8 -8 -7 -7 -7 -5 -5 -5 -5 -5 -4 -4 -4 -4 -4 -4 -3 -3 -3 -2 -2 -2 -1 -1 --------- Run | Scr Mat Min Mat Min Exi Min Mat Fac Sto Rec Fac Ext Cet Arc Hub Fac Was Fac Upp Upp Zhi Pro Res Tes Res Qua Sec Acc Com Total 20459 | . 155 131 160 559 238 188 350 1720 380 84 546 853 174 193 409 209 179 1634 182 440 185 250 1714 2298 928 1227 1982 849 2242 Wait 2581 | . 1 . 13 49 . 2 32 116 121 . 55 151 32 24 50 7 1 164 32 56 . 5 219 567 69 197 232 85 301 Move 15610 | . 131 106 118 479 231 183 273 1398 211 80 333 518 112 110 272 179 125 1348 143 346 170 224 1346 1497 762 949 1604 707 1655 Hop 17 | . . . . . . . . . . . . . . . . . . 1 . . . . . . 8 . 5 2 1 Pick Up 202 | . 2 2 5 8 5 . 6 20 3 1 15 7 3 14 8 3 1 17 1 . 2 1 12 24 6 11 11 4 10 Fast Attach 156 | . 1 . . 1 . . 4 15 7 . 11 20 5 1 4 . . 14 . 1 2 . 6 26 2 9 18 1 8 Attach 132 | . . 1 5 2 1 . 4 14 5 1 12 2 1 . 1 9 . 6 . 3 1 3 4 12 5 7 16 3 14 Detach 100 | . . . 2 . . . 1 9 4 . 4 3 2 2 . 4 1 4 . 1 2 2 2 14 9 5 14 1 14 Swap 157 | . 1 2 . 1 . . 5 10 . . 5 3 3 1 1 3 1 4 2 5 . 3 17 21 13 10 18 9 19 Drop 166 | . 2 . 2 . 1 . 4 6 8 1 4 15 3 1 6 4 2 21 1 . 2 1 3 30 7 13 13 . 16 Fire 612 | . 17 20 14 19 . 3 21 88 . . 75 22 13 40 66 . 48 1 1 23 . 8 60 56 8 . 4 . 5 Melee 607 | . . . . . . . . 44 19 1 29 17 . . . . . 54 2 5 6 3 44 46 39 26 47 26 199 Ram 3 | . . . . . . . . . 1 . . . . . 1 . . . . . . . 1 . . . . . . Kick 1 | . . . 1 . . . . . . . . . . . . . . . . . . . . . . . . . . Crush 4 | . . . . . . . . . 1 . 3 . . . . . . . . . . . . . . . . . . Escape Stasis 11 | . . . . . . . . . . . . . . . . . . . . . . . . . . . . 11 . Rewire 100 | . . . . . . . . . . . . 95 . . . . . . . . . . . 5 . . . . . Trap . | . . . . . . . . . . . . . . . . . . . . . . . . . . . . . . Miscellaneous . | . . . . . . . . . . . . . . . . . . . . . . . . . . . . . . Route ------- -11/Scrapyard -10/Materials (discovered 3 exits: *Mat / *Min x2) -10/Mines -9/Materials (discovered 2 exits: *Min x2) -9/Mines (discovered 2 exits: *Mat / *Exi) -9/Exiles -8/Mines -8/Materials -7/Factory (discovered 3 exits: *Sto x2 / [*Low]) -7/Storage -7/Recycling -5/Factory (discovered 4 exits: Upp x2 / *Ext x2) -5/Extension (discovered 2 exits: *Fac / *Cet) -5/Cetus -5/Archives (discovered 2 exits: *Fac / *Hub) -5/Hub_04(d) -4/Factory -4/Waste -4/Factory (discovered 3 exits: *Res / *Upp x2) -4/Upper Caves -4/Upper Caves -4/Zhirov -3/Proximity Caves -3/Research (discovered 3 exits: Arm / *Tes x2) -3/Testing -2/Research (discovered 5 exits: *Acc x3 / *Qua x2) -2/Quarantine (discovered 2 exits: *Acc / *Sec) -2/Section 7 -1/Access -1/Command (discovered 2 exits: *Sur x2) 0b11 Command History --------- Turn | Location | Event 1 | -11/Scrapyard | Discovered new exit (range 0) 1 | -11/Scrapyard | Entered Materials 48 | -10/Materials | Identified exit to Mines 105 | -10/Materials | Discovered new exit (range 11) 227 | -10/Materials | Entered Mines 245 | -10/Mines | YI-UF0 nonchalantly dropped a Grenade Launcher on the ground 309 | -10/Mines | Build established: Mutant 321 | -10/Mines | Destroyed YI-UF0 327 | -10/Mines | Found Prototype Launcher 436 | -10/Mines | Discovered new exit (range 8) 448 | -10/Mines | Identified YI-UF0's Doublenader 451 | -10/Mines | Entered Materials 451 | -9/Materials | Evolved 2 slots: Utility x2 553 | -9/Materials | Identified exit to Mines 692 | -9/Materials | Lost 3 parts (1p2w) 698 | -9/Materials | Entered Mines 762 | -9/Mines | Learned Materials terminal intel 926 | -9/Mines | Assembled infested the area 1566 | -9/Mines | Discovered new exit (range 12) 1629 | -9/Mines | Discovered new exit (range 5) 1641 | -9/Mines | Entered Exiles 1641 | -9/Exiles | Accompanied by 2 allies 1671 | -9/Exiles | Led the pair of lost Derelicts to a safe place 1686 | -9/Exiles | Met 8R-AWN 1715 | -9/Exiles | Met EX-HEX 1767 | -9/Exiles | Met EX-BIN 1789 | -9/Exiles | Aligned with FarCom system 1791 | -9/Exiles | Given EX-Vault access code 1832 | -9/Exiles | Opened EX-Vault 1847 | -9/Exiles | Found Lightpack 2.0 1852 | -9/Exiles | Found AWS/Thermal 1855 | -9/Exiles | Found Army-in-a-Box 1892 | -9/Exiles | Warned to stay clear of 0b10 Research branches 1941 | -9/Exiles | Met EX-DEC 2042 | -9/Exiles | Discovered new exit (range 14) 2064 | -9/Exiles | Stole three prototypes: Lightpack 2.0, Army-in-a-Box, AWS/Thermal 2064 | -9/Exiles | Entered Mines 2164 | -8/Mines | Build established: Hauler-Mutant 2380 | -8/Mines | Discovered new exit (range 10) 2402 | -8/Mines | Entered Materials 2402 | -8/Materials | Evolved 2 slots: Utility x2 2403 | -8/Materials | Loaded intel: 12 terminal locations 2784 | -8/Materials | Lost 5 parts (2u3w) 2997 | -8/Materials | Discovered new exit (range 7) 3007 | -8/Materials | Entered Factory 3007 | -7/Factory | Evolved 2 slots: Propulsion x2 3009 | -7/Factory | FarCom data flow suspended 3203 | -7/Factory | Discovered new exit (range 7) 3649 | -7/Factory | Lost 3 parts (1p1n1w) 4299 | -7/Factory | Discovered new exit (range 19) 5009 | -7/Factory | Core integrity fell below 50% 5233 | -7/Factory | Discovered new exit (range 9) 6009 | -7/Factory | Garrison activated, responded to threat 6065 | -7/Factory | Lost 6 parts (1p2n3w) 6193 | -7/Factory | Entered Storage 6289 | -7/Storage | Destroyed 7 combat bots 6543 | -7/Storage | Core integrity fell below 20% 6750 | -7/Storage | Used back door to open Recycling access 6750 | -7/Storage | Discovered new exit (range 4) 6806 | -7/Storage | Entered Recycling 6818 | -7/Recycling | Spotter reported a threat 6841 | -7/Recycling | Spotter reported a threat 6845 | -7/Recycling | Spotter reported a threat 6871 | -7/Recycling | Spotter reported a threat 6912 | -7/Recycling | Spotter reported a threat 6915 | -7/Recycling | Spotter reported a threat 6922 | -7/Recycling | Spotter reported a threat 6922 | -7/Recycling | Discovered new exit (range 16) 6937 | -7/Recycling | Spotter reported a threat 6941 | -7/Recycling | Spotter reported a threat 6942 | -7/Recycling | Build established: Mutant 6947 | -7/Recycling | Spotter reported a threat 6947 | -7/Recycling | Entered Factory 6947 | -5/Factory | Evolved 4 slots: Utility x4 7173 | -5/Factory | Identified exit to Upper Caves 7173 | -5/Factory | Identified exit to Extension 7247 | -5/Factory | First assault squad dispatched 7498 | -5/Factory | Repaired Arm. Treads? 7539 | -5/Factory | System corruption reached 10% 7579 | -5/Factory | Lost 4 parts (3n1w) 7649 | -5/Factory | Build established: Scavenger-Mutant 7692 | -5/Factory | Core integrity fell below 50% 7725 | -5/Factory | Lost 7 parts (1p2n2u2w) 7818 | -5/Factory | Entered Extension 7844 | -5/Extension | Rescued A7 7939 | -5/Extension | Energy Cycler disabled 7940 | -5/Extension | Rescued a captive Derelict 7940 | -5/Extension | Rescued a captive Derelict 7941 | -5/Extension | Rescued a captive Derelict 7941 | -5/Extension | Rescued a captive Derelict 7941 | -5/Extension | Rescued a captive Derelict 7942 | -5/Extension | Rescued a captive Derelict 7945 | -5/Extension | Rescued a captive Derelict 7949 | -5/Extension | Rescued a captive Derelict 8153 | -5/Extension | Crushed by falling debris 8154 | -5/Extension | Crushed by falling debris 8205 | -5/Extension | Lost 5 parts (2n3u) 8497 | -5/Extension | Discovered new exit (range 10) 8499 | -5/Extension | Discovered new exit (range 6) 8705 | -5/Extension | Entered Cetus 8705 | -5/Cetus | Accompanied by 10 allies (A7) 8710 | -5/Cetus | Acquired a Cetus Manufacturing Module code from A7 8726 | -5/Cetus | Spotted Cetus Guard 8726 | -5/Cetus | Spotted Cetus Guard 8730 | -5/Cetus | Spotted Cetus Guard 8732 | -5/Cetus | Spotted Cetus Guard 8738 | -5/Cetus | Allies destroyed Cetus Guard 8738 | -5/Cetus | Allies destroyed Cetus Guard 8741 | -5/Cetus | Allies destroyed Cetus Guard 8745 | -5/Cetus | Allies destroyed Cetus Guard 8796 | -5/Cetus | Cetus Manufacturing Module disabled 8898 | -5/Cetus | Escorted A7 to Cetus Mainframe 8912 | -5/Cetus | Discovered new exit (range 15) 8938 | -5/Cetus | Entered Archives 8938 | -5/Archives | Accompanied by 2 allies (A7) 8943 | -5/Archives | Received a hacking code to weaken MAIN.C 9054 | -5/Archives | Discovered new exit (range 16) 9175 | -5/Archives | Discovered new exit (range 16) 9296 | -5/Archives | Entered Hub_04(d) 9525 | -5/Hub_04(d) | Discovered new exit (range 8) 9917 | -5/Hub_04(d) | Garrison activated, responded to threat 9971 | -5/Hub_04(d) | Network Hub disabled 9979 | -5/Hub_04(d) | Spotted Lightning 9980 | -5/Hub_04(d) | Entered Factory 9980 | -4/Factory | Evolved 2 slots: Power x1, Propulsion x1 10024 | -4/Factory | Discovered new exit (range 5) 10050 | -4/Factory | Found Prototype Processor 10058 | -4/Factory | Spotted B-86 Titan 10070 | -4/Factory | Manually triggered Chute Trap 10070 | -4/Factory | Sucked down chute 10070 | -4/Factory | Entered Waste 10073 | -4/Waste | Spotted C-40 Crusher 10085 | -4/Waste | EMP discharged 10095 | -4/Waste | 1 allies followed down the chute 10124 | -4/Waste | Spotted C-40 Crusher 10170 | -4/Waste | Spotted C-40 Crusher 10181 | -4/Waste | Spotted C-40 Crusher 10185 | -4/Waste | EMP discharged 10185 | -4/Waste | System corruption reached 10% 10195 | -4/Waste | Spotted C-40 Crusher 10196 | -4/Waste | Discovered new exit (range 11) 10196 | -4/Waste | Spotted C-40 Crusher 10210 | -4/Waste | Entered Factory 10210 | -4/Factory | Accompanied by 1 ally 10223 | -4/Factory | Identified exit to Upper Caves 10280 | -4/Factory | Build established: Wizard-Sprinter 10361 | -4/Factory | Discovered new exit (range 5) 10380 | -4/Factory | Identified Exp. Signal Interpreter 10540 | -4/Factory | Repaired Centrium Heavy Treads? 10576 | -4/Factory | Spotted B-86 Titan 10757 | -4/Factory | Lost 5 parts (4n1u) 10758 | -4/Factory | Central database locked down 10830 | -4/Factory | Fabricated Cmb. Airjet (x2) 10851 | -4/Factory | Fabricated Exp. Sensor Array? 10853 | -4/Factory | Fabricated Cmb. Airjet (x2) 10885 | -4/Factory | Fabricated Adv. Powered Armor (x1) 10917 | -4/Factory | Fabricated Adv. Powered Armor? 10923 | -4/Factory | Build established: Wizard-Mutant 10999 | -4/Factory | Local fabrication network quarantined 11107 | -4/Factory | Entered Upper Caves 11228 | -4/Upper Caves | Discovered new exit (range 8) 11231 | -4/Upper Caves | Identified exit to Upper Caves 11241 | -4/Upper Caves | Found Alien Artifact 11248 | -4/Upper Caves | Entered another Upper Caves area 11269 | -4/Upper Caves | Encountered a Warlord checkpoint 11403 | -4/Upper Caves | Lost 3 parts (1n1u1w) 11625 | -4/Upper Caves | Discovered new exit (range 11) 11631 | -4/Upper Caves | Identified exit to Zhirov 11635 | -4/Upper Caves | Entered Zhirov 11635 | -4/Zhirov | Discovered new exit (range 3) 11649 | -4/Zhirov | Met Zhirov 11667 | -4/Zhirov | Found Alien Artifact 11667 | -4/Zhirov | Identified Integrated Dissipator 11667 | -4/Zhirov | Installed Integrated Dissipator, increased core heat dissipation (+20) 11690 | -4/Zhirov | Learned location of Testing (-3) 11690 | -4/Zhirov | Learned location of Quarantine (-2) 11690 | -4/Zhirov | Learned location of Command (-1) 11695 | -4/Zhirov | Zhirov requested help retrieving the SGEMP Prototype 11707 | -4/Zhirov | Found Alien Artifact 11775 | -4/Zhirov | Identified exit to Proximity Caves 11781 | -4/Zhirov | Entered Proximity Caves 11946 | -3/Proximity Caves | Spotted B-86 Titan 11976 | -3/Proximity Caves | Discovered new exit (range 9) 11981 | -3/Proximity Caves | Identified exit to Research 11989 | -3/Proximity Caves | Entered Research 11989 | -3/Research | Evolved 2 slots: Utility x2 12042 | -3/Research | Central database locked down 12045 | -3/Research | Identified exit to Armory 12045 | -3/Research | Identified exit to Testing 12221 | -3/Research | Found Hvy. Insulated Plating 12303 | -3/Research | Repaired Adv. Powered Armor? 12350 | -3/Research | Repaired Adv. Powered Armor 12385 | -3/Research | Repaired Broken Cmb. Airjet 12442 | -3/Research | Found Prototype Launcher 12696 | -3/Research | Repaired Hyp. Mass Driver? 12755 | -3/Research | Repaired Adv. Variable Charge Gun 12955 | -3/Research | Fabricated Exp. Utility Shielding? 13385 | -3/Research | Entered Testing 13426 | -3/Testing | Found Prototype Hackware 13426 | -3/Testing | Identified System Mapper 13537 | -3/Testing | Central database locked down 13542 | -3/Testing | Spotted Striker 13542 | -3/Testing | Spotted Striker 13553 | -3/Testing | Found Prototype Ballistic Gun 13553 | -3/Testing | Identified Hyp. Multirail 13593 | -3/Testing | Identified Dimensional Node Initializer 13593 | -3/Testing | Identified Transdimensional Reconstructor 13593 | -3/Testing | Identified Adv. Micro-nuke Launcher 13626 | -3/Testing | Found Prototype Device 13664 | -3/Testing | Identified EM Dispersion Field 13681 | -3/Testing | Identified exit to Research 13699 | -3/Testing | Repaired Adv. Transmission Jammer 13797 | -3/Testing | Spotted Alpha 7 13824 | -3/Testing | Destroyed Alpha 7 13887 | -3/Testing | Spotted CT-4T4(L) 13887 | -3/Testing | Spotted 8M-DNO(L) 13887 | -3/Testing | Spotted HA-B2V(L) 13896 | -3/Testing | Rewired 8M-DNO(L) 13897 | -3/Testing | Rewired CT-4T4(L) 13901 | -3/Testing | Rewired HA-B2V(L) 13931 | -3/Testing | Fabricated EM Dispersion Field (x1) 13986 | -3/Testing | Fabricated Beam Splitter (x1) 14024 | -3/Testing | Fabricated Exp. Propulsion Shielding (x1) 14205 | -3/Testing | Repaired Cmb. Airjet? 14206 | -3/Testing | Found Prototype Device 14209 | -3/Testing | Identified Exp. Transmission Jammer 14240 | -3/Testing | Repaired Cmb. Airjet 14260 | -3/Testing | Repaired Mic. Fission Core? 14291 | -3/Testing | Repaired Adv. Powered Armor 14435 | -3/Testing | Fabricated Exp. Terrain Scan Processor (x1) 14465 | -3/Testing | Local fabrication network quarantined 14473 | -3/Testing | Fabricated Exp. Terrain Scanner (x1) 14568 | -3/Testing | Found Prototype Energy Gun 14568 | -3/Testing | Identified Tachyon Dispersion Ray 14614 | -3/Testing | Found Prototype Device 14614 | -3/Testing | Identified Exp. Hardlight Generator 14647 | -3/Testing | Found Prototype Device 14647 | -3/Testing | Identified AEGIS Remote Shield 14753 | -3/Testing | Spotted PL-5R8SJ9JPED 14801 | -3/Testing | Lost 3 parts (1n1u1w) 14817 | -3/Testing | Warped through subspace 14896 | -3/Testing | Core integrity fell below 50% 14902 | -3/Testing | Destroyed PL-5R8SJ9JPED 14935 | -3/Testing | Lost 4 parts (2n1u1w) 14937 | -3/Testing | Found Prototype Processor 14937 | -3/Testing | Identified Exp. Core Analyzer 15055 | -3/Testing | System corruption reached 10% 15110 | -3/Testing | Entered Research 15110 | -2/Research | Evolved 2 slots: Utility x2 15234 | -2/Research | Identified exit to Quarantine 15385 | -2/Research | Identified exit to Access 15385 | -2/Research | Spotted B-90 Cyclops 15494 | -2/Research | Fabricated Exp. Utility Shielding? 15513 | -2/Research | Central database locked down 15577 | -2/Research | Spotted B-90 Cyclops 15607 | -2/Research | Spotted B-90 Cyclops 15623 | -2/Research | Entered Quarantine 15633 | -2/Quarantine | Found Alien Artifact 15646 | -2/Quarantine | Found Alien Artifact 15657 | -2/Quarantine | Cryocooling Duct disabled 15672 | -2/Quarantine | Ambient heat levels rising (+20) 15672 | -2/Quarantine | Non-combat units ordered to evacuate 15763 | -2/Quarantine | Found Gamma Bomb Array 15816 | -2/Quarantine | Central database locked down 15914 | -2/Quarantine | Found Alien Slashing Weapon 15933 | -2/Quarantine | Found Alien Artifact 15956 | -2/Quarantine | Discovered exit to Access (range 10) 16006 | -2/Quarantine | Repaired Mic. Fission Core 16041 | -2/Quarantine | Repaired Adv. Powered Armor 16047 | -2/Quarantine | Repaired Impulse Thruster Array 16062 | -2/Quarantine | Found Alien Energy Cannon 16117 | -2/Quarantine | Identified Phase Redirector 16117 | -2/Quarantine | Identified Subatomic Replicator 16117 | -2/Quarantine | Identified Core Cannon 16158 | -2/Quarantine | Identified Sigix Broadsword 16173 | -2/Quarantine | Found Alien Launcher 16221 | -2/Quarantine | Spotted Fortress 16244 | -2/Quarantine | Discovered new exit (range 6) 16246 | -2/Quarantine | Identified exit to Section 7 16290 | -2/Quarantine | Entered Section 7 16396 | -2/Section 7 | Discovered exit to Access (range 24) 16422 | -2/Section 7 | Initialized slip node 16504 | -2/Section 7 | Found Alien Artifact 16532 | -2/Section 7 | Identified Integrated Reactor 16532 | -2/Section 7 | Installed Integrated Reactor, increased core energy generation (+10) 16625 | -2/Section 7 | Spotted B-90 Cyclops 16630 | -2/Section 7 | Found Integrated Reactor 16630 | -2/Section 7 | Installed Integrated Reactor, increased core energy generation (+10) 16685 | -2/Section 7 | Spotted S7 Guard 16690 | -2/Section 7 | Found Alien Artifact 16756 | -2/Section 7 | Central database locked down 16761 | -2/Section 7 | Found Alien Artifact 16770 | -2/Section 7 | Spotted B-99 Colossus 16789 | -2/Section 7 | Found Alien Artifact 16789 | -2/Section 7 | Identified LRC Storage 16789 | -2/Section 7 | Installed LRC Storage, increased inventory capacity (+2) 16792 | -2/Section 7 | Found Alien Artifact 16792 | -2/Section 7 | Identified LRC Energy Well 16792 | -2/Section 7 | Installed LRC Energy Well, increased energy storage capacity (+250) 16794 | -2/Section 7 | Found Alien Artifact 16794 | -2/Section 7 | Identified LRC Boosters 16794 | -2/Section 7 | Installed LRC Boosters, increased mass support (+10) 16880 | -2/Section 7 | Found Integrated Dissipator 16880 | -2/Section 7 | Installed Integrated Dissipator, increased core heat dissipation (+20) 16881 | -2/Section 7 | Found Integrated Dissipator 16881 | -2/Section 7 | Installed Integrated Dissipator, increased core heat dissipation (+20) 16883 | -2/Section 7 | Found Integrated Dissipator 16883 | -2/Section 7 | Installed Integrated Dissipator, increased core heat dissipation (+20) 16902 | -2/Section 7 | Found Transdimensional Reconstructor 16903 | -2/Section 7 | Found Transdimensional Reconstructor 16904 | -2/Section 7 | Found Transdimensional Reconstructor 16905 | -2/Section 7 | Warped through subspace to slip node 16972 | -2/Section 7 | Found Integrated Reactor 16972 | -2/Section 7 | Installed Integrated Reactor, increased core energy generation (+10) 17030 | -2/Section 7 | Found Alien Artifact 17073 | -2/Section 7 | Identified Hpw. Transdimensional Reconstructor 17073 | -2/Section 7 | Identified Integrated Singularity Reactor 17073 | -2/Section 7 | Identified Core Reset Matrix 17073 | -2/Section 7 | Identified Sigix Terminator 17074 | -2/Section 7 | Used Subatomic Replicator to replicate Integrated Singularity Reactor 17076 | -2/Section 7 | Installed Integrated Singularity Reactor, increased core energy generation (+20) 17077 | -2/Section 7 | Installed Integrated Singularity Reactor, increased core energy generation (+20) 17103 | -2/Section 7 | Found Beam Splitter 17141 | -2/Section 7 | Build established: Hacker-Sprinter 17192 | -2/Section 7 | Entered Access 17192 | -1/Access | Accompanied by 1 ally 17192 | -1/Access | Evolved 2 slots: Utility x1, Weapon x1 17326 | -1/Access | Discovered new exit (range 8) 17416 | -1/Access | Repaired Exp. Utility Shielding 17466 | -1/Access | Fabricated Femtoactuators (x1) 17481 | -1/Access | Found Antimissile System 17495 | -1/Access | Build established: Wizard-Scout 17512 | -1/Access | Fabricated Adv. Force Booster (x2) 17523 | -1/Access | Identified exit to Command 17524 | -1/Access | Entered Command 17550 | -1/Command | Disengaged cave seal 17616 | -1/Command | Found Enh. Force Lance 17704 | -1/Command | Phase Generator disabled 17761 | -1/Command | Discovered new exit (range 29) 17806 | -1/Command | Spotted Combat Programmer 17811 | -1/Command | Crushed by falling debris 17836 | -1/Command | Met MAIN.C 17846 | -1/Command | 0b10 Conduit disabled 17872 | -1/Command | Destroyed MAIN.C Shell 17873 | -1/Command | Surrendered to MAIN.C 17873 | -1/Command | Loaded intel: 50 machine locations 17873 | -1/Command | Loaded intel: 99 trap records 17873 | -1/Command | Identified exit to Surface 17873 | -1/Command | Discovered exit to Surface (range 90) 17873 | -1/Command | Discovered exit to Surface (range 40) 17874 | -1/Command | Found Centrium Heavy Armor Plating 17891 | -1/Command | Found Prototype Device 17891 | -1/Command | Identified System Purifier 17893 | -1/Command | Found Prototype Processor 17893 | -1/Command | Identified Exp. Target Analyzer 17895 | -1/Command | Found Prototype Device 17895 | -1/Command | Identified Exp. Cloaking Device 17900 | -1/Command | Found Hyp. Multirail 17901 | -1/Command | Found Hyp. Multirail 17903 | -1/Command | Found Prototype Ballistic Gun 17903 | -1/Command | Identified Multirail 17905 | -1/Command | Found Hyp. Multirail 17909 | -1/Command | Found Prototype Protection 17918 | -1/Command | MAIN.C activated Command garrisons 17957 | -1/Command | Unknown forces attacked Command 17957 | -1/Command | Spotted EQ-003 17957 | -1/Command | Spotted EQ-001 17957 | -1/Command | Spotted EQ-004 17957 | -1/Command | Spotted EQ-000 17957 | -1/Command | Spotted EQ-005 17959 | -1/Command | Spotted EQ-006 17964 | -1/Command | Destroyed EQ-001 17965 | -1/Command | Spotted EQ-002 17969 | -1/Command | Destroyed EQ-000 17978 | -1/Command | Destroyed EQ-005 17983 | -1/Command | Destroyed EQ-002 18047 | -1/Command | Found Adv. Kinecellerator 18051 | -1/Command | Spotted EQ-020 18051 | -1/Command | Spotted EQ-018 18051 | -1/Command | Spotted EQ-019 18051 | -1/Command | Spotted EQ-030 18059 | -1/Command | Destroyed EQ-018 18063 | -1/Command | Destroyed EQ-019 18111 | -1/Command | Build established: Hauler-Sprinter 18167 | -1/Command | Spotted EQ-023 18167 | -1/Command | Spotted EQ-011 18168 | -1/Command | Spotted EQ-013 18171 | -1/Command | Spotted EQ-038 18174 | -1/Command | Destroyed EQ-038 18179 | -1/Command | Destroyed EQ-011 18180 | -1/Command | Spotted EQ-039 18197 | -1/Command | Found Exp. Targeting Computer 18248 | -1/Command | Spotted EQ-056 18248 | -1/Command | Spotted EQ-040 18262 | -1/Command | Destroyed EQ-040 18268 | -1/Command | Destroyed EQ-056 18276 | -1/Command | Spotted EQ-082 18277 | -1/Command | Spotted EQ-060 18284 | -1/Command | Destroyed EQ-082 18304 | -1/Command | Spotted EQ-063 18306 | -1/Command | Spotted EQ-048 18316 | -1/Command | Spotted EQ-064 18322 | -1/Command | Destroyed EQ-048 18323 | -1/Command | Spotted EQ-055 18332 | -1/Command | Destroyed EQ-055 18334 | -1/Command | Spotted EQ-066 18348 | -1/Command | Destroyed EQ-066 18372 | -1/Command | Spotted EQ-057 18372 | -1/Command | Spotted EQ-069 18383 | -1/Command | Destroyed EQ-069 18385 | -1/Command | Spotted EQ-075 18388 | -1/Command | Spotted EQ-095 18388 | -1/Command | Spotted EQ-086 18388 | -1/Command | Spotted EQ-087 18389 | -1/Command | Spotted EQ-090 18389 | -1/Command | Spotted EQ-085 18401 | -1/Command | Destroyed EQ-087 18405 | -1/Command | Destroyed EQ-086 18412 | -1/Command | Destroyed EQ-085 18419 | -1/Command | Destroyed EQ-090 18427 | -1/Command | Destroyed EQ-095 18437 | -1/Command | Destroyed all MAIN.C guards 18437 | -1/Command | Destroyed EQ-075 18443 | -1/Command | Spotted EQ-052 18443 | -1/Command | Spotted EQ-058 18458 | -1/Command | Destroyed 7 combat bots 18462 | -1/Command | Destroyed EQ-058 18465 | -1/Command | Spotted EQ-074 18466 | -1/Command | Destroyed EQ-052 18470 | -1/Command | Spotted EQ-068 18470 | -1/Command | Spotted EQ-061 18471 | -1/Command | Spotted EQ-102 18481 | -1/Command | Destroyed EQ-068 18489 | -1/Command | Destroyed EQ-102 18490 | -1/Command | Spotted EQ-111 18496 | -1/Command | Spotted EQ-113 18497 | -1/Command | Spotted EQ-110 18497 | -1/Command | Spotted EQ-091 18497 | -1/Command | Spotted EQ-112 18514 | -1/Command | Fired Sigix Terminator 18514 | -1/Command | Destroyed EQ-113 18514 | -1/Command | Destroyed EQ-112 18514 | -1/Command | Destroyed EQ-074 18514 | -1/Command | Destroyed MAIN.C 18515 | -1/Command | Attackers retreated from Command 18531 | *** | Establishing 0b11! Last Messages --------------- 18514_ Destroyed Unknown Energy Gun. 18514_ EQ-113 destroyed. 18514_ Destroyed Exp. Cooling System. 18514_ Destroyed Com. HERF Cannon. 18514_ Destroyed Exp. Cooling System. 18514_ Destroyed Enh. Optical Array. 18514_ Destroyed Prototype Device. 18514_ EQ-112 destroyed. 18514_ EQ-074 destroyed. 18514_ Destroyed Lgt. Quantum Reactor. 18514_ Destroyed Prototype Ballistic Gun. 18514_ MAIN.C: "Ha ha ha." 18514_ MAIN.C destroyed. 18514_ Knocked back. 18515_ ALERT: Enemy forces retreating. 18520_ Acquired 40 matter. 18522_ The unstable cave ceiling collapses. 18522_ Adv. Targeting Computer crushed. 18524_ Acquired 4 matter. 18525_ Acquired 1 matter. Map ----- +----------------------------------------------------+ | #### #"" ## ^ #### | | + + #"" ## #!! | | #### #T ! ## #! ! | | #??# ! #"" ! + #[ [ | | #??##############"" "" ## ^ #][] | | #??????????????##"" """" #### ## #### | | #??????????????# """" ####+## ^ #??? | | +##################### "" # ## ^ #??? | | ##### # ## #??? | | ########### # =| ###+###??? | | #?????????# # =! #?# #???? | | ##### #?????????# # = #?# #??? | | ##???######################## # # #?# #??? | | #??????# #??????# # # = #?# #?? | | #??????# #??????#### + ###+### | | #??????# #?????????# ## = # ## | | ######## #?????????# #####+# #?# | | #""""""# ####???####+###?# + #?## | | + """# + #???# #?# # ### | | ^+ """###+########### #???# ### # " " | | + """## ########## ##### + # " " | | #""""""## =%" # =!+ " " | | ########## ################# [%= " " | | ?????????## ##?????????####### * !! " | | ??????????# #??????????# ## !% = " | | ########### #??????????# @ ## = % == " | | #??????????# ## !%= % = " | | ^ ####??????????### ## = #% # " | | ^ #???????????????# ## # % # = " | | #???????????????# #" # " | | #?#############?# ## ## " | | "" #?# #?# ###""#+ # # " | | "" #?# #?# =# = # " | | #?# #?# %# % % " | | #?# #?# # /=! %! *!##"" | | #?# #?# # %=!! %!%! *]=! | | #### #?# #?# # !!! # [!= ==* =% | | ## #??# #?# #?# " # *][!%! | | ?# #??# #?# """" #?# " ### # ##### | | ##+#### #?# """" #?# #% #?# # # #? | | ^ ## #?# """" #?# # #?# # # ##? | | ## #?# """" #?# # #?### ## #? | | ## #?# #?# # #???# ## #? | | "" ## ### ### #######+###### ### | | """ # ############+## # #?#######?? | | """ + # #?????????? | | "" # + #?????????? | | # ############### # "" "" #?????????? | | ######?????????????###### ""T"" #?????????? | | ######???????????????????????# """ #?????????? | +----------------------------------------------------+ Best States ------------- Heat Dissipation 166 Energy Generation 106 Energy Capacity 1420 Matter Stores 600 Matter Capacity 600 Sight Range 22 Robot Scan Range 30 Terrain Scan Range 30 Terrain Scan Density 1010 Jamming Range 22 Armor Coverage 2100 Resistance: TH 75 Resistance: EM 75 Propulsion Shielding 90 Utility Shielding 90 Melee Speed Boost 50 Phase Shifting 15 Evasion (%) 65 Targeting Accuracy 6 Melee Accuracy 6 Target Analysis 12 Core Analysis 15 Recoil Reduction 4 Kinecelleration 40 Force Boost 5 Offensive Hacking 56 Defensive Hacking 24 Item Schematics ----------------- Cmb. Airjet | -7/Factory | Scanalyzed Adv. Powered Armor | -5/Extension | Hacked Exp. Signal Interpreter | -4/Factory | Scanalyzed Exp. Sensor Array | -4/Factory | Hacked Enh. Force Lance | -4/Factory | Hacked Assault Drone Bay | -4/Zhirov | Free Exp. Heat Sink | -4/Zhirov | Free Exp. Optical Array | -4/Zhirov | Free Imp. Arc Thrower | -4/Zhirov | Free Exp. Utility Shielding | -3/Research | Hacked Adv. Reaction Control System | -3/Research | Hacked Cmb. Linear Gravjet | -3/Testing | Hacked Exp. Propulsion Shielding | -3/Testing | Hacked Exp. Weapon Shielding | -3/Testing | Hacked Exp. Terrain Scan Processor | -3/Testing | Hacked Exp. Terrain Scanner | -3/Testing | Hacked EM Dispersion Field | -3/Testing | Scanalyzed Beam Splitter | -3/Testing | Hacked Adv. Overload Regulator | -3/Testing | Hacked Stealth Drone Bay | -3/Testing | Scanalyzed Imp. Diametric Drive | -3/Testing | Scanalyzed Mni. Smartbomb Launcher | -2/Research | Hacked Mni. Fusion Reactor | -2/Research | Hacked Femtoactuators | -1/Access | Hacked Adv. Force Booster | -1/Access | Hacked Exp. Actuator Array | -1/Access | Hacked Robot Schematics ------------------ None Fabricated ------------ Cmb. Airjet | x2 | -4/Factory Exp. Sensor Array | x1 | -4/Factory Cmb. Airjet | x2 | -4/Factory Adv. Powered Armor | x1 | -4/Factory Adv. Powered Armor | x1 | -4/Factory Exp. Utility Shielding | x1 | -3/Research EM Dispersion Field | x1 | -3/Testing Beam Splitter | x1 | -3/Testing Exp. Propulsion Shielding | x1 | -3/Testing Exp. Terrain Scan Processor | x1 | -3/Testing Exp. Terrain Scanner | x1 | -3/Testing Exp. Utility Shielding | x1 | -2/Research Femtoactuators | x1 | -1/Access Adv. Force Booster | x2 | -1/Access Alien Tech Used ----------------- Integrated Dissipator Transdimensional Reconstructor Sigix Broadsword Dimensional Node Initializer Integrated Reactor LRC Storage LRC Energy Well LRC Boosters Core Cannon Subatomic Replicator Integrated Singularity Reactor Sigix Terminator Achievements -------------- None Challenges ------------ None Game ------ Seed RecyclingNeutralizingEngine Manual? 0 Play Time 04:49:53 Cumulative 952.6 hours Start 2020.09.17 @ 17:43:27 End 2020.09.19 @ 01:21:09 Sessions 11 Manual Loads 0 Difficulty Rogue Special Mode None Game No. 291 Rogue 291 Adventurer 0 Explorer 0 Win Type 1 Total 63 Types 42/4/6/5/4/1/1/0/0 Lore% 96 Gallery% 98 Achievement% 98 Wizard Run 0 Options --------- ASCII 0 Keyboard 1 Movement Numpad Keybinds 0 Fullscreen 1 Font 18/SmallcapsGlow Map View 76x50 Tactical HUD 1 Map Filters NONE Filters NONE Steam 1 RUN: 2710f40c-6629-4539-a192-dc56a86231f2